bitfinex/quotes_BTCUSD_20220303
["timestamp","ask_amount","ask_price","bid_price","bid_amount"]
[1646266878912,0.15759169,43883.0,43876.0,0.0832997]
[1646266879115,0.353746,43882.0,43877.0,0.27626861]
[1646266879513,0.353746,43882.0,43876.0,0.0832997]
[1646266879713,0.00020541,43882.0,43876.0,0.0832997]
[1646266880614,0.00020541,43882.0,43871.0,0.002]
[1646266880615,1.044846,43881.0,43871.0,0.002]
[1646266880814,0.353746,43881.0,43871.0,0.002]
[1646266881014,0.00020541,43881.0,43871.0,0.002]
[1646266881417,0.353746,43880.0,43871.0,0.002]
[1646266881712,0.00020541,43881.0,43874.0,0.24446557]
[1646266881713,0.3,43879.0,43874.0,0.24446557]
[1646266881913,0.353746,43878.0,43873.0,0.0832997]
[1646266882114,0.35395142,43878.0,43873.0,0.0832997]
[1646266882513,0.35395142,43878.0,43873.0,0.0782997]
[1646266882945,0.18476277,43876.0,43873.0,0.0782997]
[1646266883346,0.353746,43877.0,43873.0,0.0782997]
[1646266883647,0.353746,43877.0,43873.0,0.3082997]
[1646266883847,0.00020542,43878.0,43873.0,0.3082997]
[1646266884245,0.58297707,43882.0,43873.0,0.3082997]
[1646266884445,0.20410236,43878.0,43873.0,0.23]
[1646266884645,0.353746,43877.0,43873.0,0.23]
[1646266885045,0.353746,43876.0,43873.0,0.23]
[1646266885244,0.3,43875.0,43873.0,0.23]
[1646266885450,0.353746,43874.0,43873.0,0.23]
[1646266887695,0.453746,43874.0,43873.0,0.23]
[1646266890141,0.353746,43874.0,43873.0,0.23]
[1646266892042,0.353746,43875.0,43873.0,0.23]
[1646266893244,0.5895718,43875.0,43873.0,0.23]
[1646266893895,0.353746,43875.0,43873.0,0.23]
[1646266894296,0.5895718,43875.0,43873.0,0.23]
[1646266895999,0.353746,43875.0,43873.0,0.23]
[1646266896496,0.2449508,43876.0,43873.0,0.23]
[1646266896497,0.00020093,43876.0,43873.0,0.23]
[1646266896697,0.00020093,43876.0,43874.0,0.18614019]
[1646266896897,0.00020093,43876.0,43875.0,0.65631394]
[1646266897100,0.2358258,43881.0,43876.0,0.55027782]
[1646266897298,0.2358258,43881.0,43876.0,0.00027782]
[1646266897500,0.2358258,43882.0,43876.0,0.00027782]
[1646266897747,0.2358258,43882.0,43879.0,0.0782997]
[1646266897947,0.2358258,43883.0,43879.0,0.0782997]
[1646266898147,0.353746,43882.0,43879.0,0.0782997]
[1646266898452,0.5895718,43882.0,43879.0,0.06192992]
[1646266898649,0.353746,43880.0,43879.0,0.001]
[1646266899652,0.353746,43880.0,43876.0,0.06120774]
[1646266899850,0.353746,43881.0,43876.0,0.06120774]
[1646266900251,0.009124,43881.0,43876.0,0.00027782]
[1646266900452,0.353746,43881.0,43879.0,0.06092992]
[1646266900956,0.75392276,43881.0,43876.0,0.00227782]
[1646266901155,0.2358258,43880.0,43876.0,0.00227782]
[1646266901398,0.353746,43879.0,43876.0,0.00227782]
[1646266901599,0.5895718,43879.0,43876.0,0.00227782]
[1646266901799,0.353746,43879.0,43876.0,0.00027782]
[1646266901998,0.18872395,43877.0,43876.0,0.00027782]
[1646266902201,0.54246995,43877.0,43876.0,0.00027782]
[1646266903298,0.18872395,43877.0,43876.0,0.00027782]
[1646266903502,0.18872395,43878.0,43876.0,0.00027782]
[1646266903898,0.353746,43877.0,43876.0,0.00027782]
[1646266904300,0.54246995,43878.0,43877.0,0.24460421]
[1646266904498,0.353746,43878.0,43877.0,0.24460421]
[1646266904700,0.54246995,43878.0,43877.0,0.24460421]
[1646266904900,0.353746,43878.0,43876.0,0.00027782]
[1646266905161,0.18872395,43879.0,43877.0,0.06092992]
[1646266905352,0.353746,43878.0,43877.0,0.06092992]
[1646266905750,0.18872395,43879.0,43877.0,0.06092992]
[1646266906055,0.353746,43878.0,43877.0,0.06092992]
[1646266906254,0.54246995,43878.0,43877.0,0.06092992]
[1646266906452,0.54246995,43878.0,43876.0,0.06120774]
[1646266906660,0.54246995,43877.0,43876.0,0.00027782]
[1646266909197,0.52667164,43877.0,43876.0,0.00027782]
[1646266909404,0.353746,43877.0,43876.0,0.00027782]
[1646266909598,0.353746,43877.0,43876.0,0.22595292]
[1646266909799,0.353746,43877.0,43876.0,0.00027782]
[1646266910600,0.1887242,43877.0,43876.0,0.00027782]
[1646266910802,0.00196056,43878.0,43876.0,0.06120774]
[1646266911701,0.00196056,43878.0,43877.0,0.25950478]
[1646266913045,0.00168627,43878.0,43877.0,0.25950478]
[1646266914145,0.00168627,43878.0,43877.0,0.55950478]
[1646266914345,0.00168627,43878.0,43877.0,0.25950478]
[1646266914544,0.00168627,43878.0,43877.0,0.26350478]
[1646266915744,0.00168627,43878.0,43877.0,0.25950478]
[1646266916145,0.00168627,43878.0,43877.0,0.69950478]
[1646266916592,0.00168627,43878.0,43877.0,0.70350478]
[1646266916997,0.00168627,43878.0,43877.0,1.03330259]
[1646266917193,0.00168627,43878.0,43877.0,0.89920478]
[1646266917391,0.00168627,43878.0,43877.0,0.62195478]
[1646266917592,0.00168627,43878.0,43877.0,0.68653848]
[1646266918392,0.00168627,43878.0,43877.0,0.68253848]
[1646266918594,0.00168627,43878.0,43877.0,0.74452748]
[1646266918797,0.00019254,43880.0,43877.0,1.04452748]
[1646266918998,0.00019254,43880.0,43879.0,0.14]
[1646266919195,0.18880276,43887.0,43879.0,0.44]
[1646266919395,0.18880276,43888.0,43885.0,0.18046599]
[1646266919694,0.18880276,43888.0,43886.0,0.28760566]
[1646266920130,0.18880276,43888.0,43887.0,0.06092992]
[1646266920938,0.18880276,43889.0,43887.0,0.36092992]
[1646266921136,0.18880276,43889.0,43887.0,0.06092992]
[1646266921837,0.18880276,43888.0,43887.0,0.06092992]
[1646266922037,0.00019262,43890.0,43887.0,0.06092992]
[1646266922839,0.2358258,43893.0,43888.0,0.72482106]
[1646266923036,0.00019262,43891.0,43888.0,0.42482106]
[1646266923239,0.00019262,43891.0,43890.0,0.06092992]
[1646266923888,0.2459458,43895.0,43890.0,0.06092992]
[1646266924192,0.00019262,43893.0,43890.0,0.85725546]
[1646266925190,0.001,43895.0,43890.0,0.85725546]
[1646266925389,0.001,43895.0,43894.0,0.06092992]
[1646266925590,0.28440636,43900.0,43894.0,0.04680225]
[1646266926192,0.28440636,43900.0,43895.0,0.28096714]
[1646266926395,0.001,43900.0,43895.0,0.58096714]
[1646266926595,0.00010734,43899.0,43898.0,0.04680225]
[1646266927392,0.00010734,43899.0,43898.0,0.54850866]
[1646266927654,0.001,43900.0,43898.0,0.54850866]
[1646266927856,0.01012,43900.0,43898.0,0.54850866]
[1646266928053,0.001,43900.0,43898.0,0.24850866]
[1646266928453,0.001,43900.0,43898.0,0.04680225]
[1646266928756,0.00157263,43899.0,43898.0,0.04680225]
[1646266930552,0.00157263,43899.0,43898.0,0.04980225]
[1646266931788,0.00157263,43899.0,43898.0,0.04680225]
[1646266933587,0.00204026,43899.0,43898.0,0.27680225]
[1646266936551,0.00204026,43899.0,43898.0,0.27980225]
[1646266937752,0.00204026,43899.0,43898.0,0.27680225]
[1646266938898,0.001,43900.0,43898.0,0.27882737]
[1646266940504,0.001,43900.0,43898.0,0.28182737]
[1646266941700,0.001,43900.0,43898.0,0.27882737]
[1646266942307,0.001,43900.0,43898.0,0.23202512]
[1646266942502,0.001,43900.0,43898.0,0.23502512]
[1646266942503,0.353746,43899.0,43898.0,0.23502512]
[1646266942744,0.0457,43899.0,43898.0,0.23502512]
[1646266943143,0.399446,43899.0,43898.0,0.23502512]
[1646266943548,0.0457,43899.0,43898.0,0.23502512]
[1646266943745,0.001,43900.0,43898.0,0.23202512]
[1646266943943,0.001,43900.0,43898.0,0.23]
[1646266945748,0.0467,43900.0,43898.0,0.23]
[1646266946048,0.353746,43899.0,43898.0,0.23]
[1646266946251,0.399446,43899.0,43898.0,0.23]
[1646266946513,0.65099193,43899.0,43898.0,0.23]
[1646266946815,0.29724593,43899.0,43898.0,0.23]
[1646266947013,0.29724593,43899.0,43898.0,0.22989993]
[1646266947215,0.65099193,43899.0,43898.0,0.22989993]
[1646266947414,0.29724593,43899.0,43898.0,0.22989993]
[1646266947619,1.44209193,43899.0,43898.0,0.22989993]
[1646266947815,0.75099193,43899.0,43898.0,0.22989993]
[1646266948816,0.75099193,43899.0,43883.0,0.1247]
[1646266948817,0.55,43898.0,43883.0,0.1247]
[1646266949020,0.057005,43893.0,43879.0,0.04680225]
[1646266949219,0.6911,43891.0,43879.0,0.04680225]
[1646266949415,0.0457,43890.0,43880.0,0.04680225]
[1646266949816,0.0457,43890.0,43885.0,0.20641569]
[1646266950657,0.0457,43890.0,43885.0,0.20741569]
[1646266951958,0.0458926,43890.0,43885.0,0.20641569]
[1646266952557,0.0458926,43890.0,43885.0,0.20741569]
[1646266952760,0.0457,43890.0,43885.0,0.20741569]
[1646266953158,0.0458926,43890.0,43887.0,0.26215141]
[1646266953996,0.0457,43890.0,43887.0,0.26215141]
[1646266954500,0.0457,43890.0,43887.0,0.49415141]
[1646266955701,0.0457,43890.0,43887.0,0.49215141]
[1646266956501,0.0457,43890.0,43887.0,0.23]
[1646266958178,0.00019243,43891.0,43887.0,0.23]
[1646266958380,0.00019243,43891.0,43888.0,0.00183536]
[1646266958782,0.30625545,43895.0,43888.0,0.00183536]
[1646266958783,0.1127,43895.0,43888.0,0.00183536]
[1646266958980,0.1127,43895.0,43888.0,0.04863761]
[1646266959283,0.00931343,43892.0,43888.0,0.00183536]
[1646266959481,0.00019243,43892.0,43888.0,0.00183536]
[1646266960082,0.353746,43898.0,43888.0,0.00183536]
[1646266960283,0.00019243,43892.0,43888.0,0.00183536]
[1646266960485,0.00019243,43892.0,43888.0,0.00383536]
[1646266961287,0.353746,43896.0,43888.0,0.00383536]
[1646266961498,0.00019243,43892.0,43888.0,0.00383536]
[1646266961898,0.00019243,43892.0,43888.0,0.00183536]
[1646266962499,0.353746,43896.0,43888.0,0.00183536]
[1646266962697,0.4,43897.0,43888.0,0.00183536]
[1646266962698,0.00019243,43892.0,43888.0,0.00183536]
[1646266963504,0.353746,43889.0,43888.0,0.00183536]
[1646266963702,0.799446,43889.0,43887.0,0.23]
[1646266963900,0.753746,43888.0,43887.0,0.23]
[1646266964100,0.799446,43888.0,43887.0,0.23]
[1646266964299,0.499446,43888.0,43887.0,0.23]
[1646266964499,0.71298777,43888.0,43887.0,0.23]
[1646266964899,1.01298777,43888.0,43887.0,0.23]
[1646266965156,0.499446,43888.0,43887.0,0.23]
[1646266966156,0.0457,43888.0,43887.0,0.23]
[1646266966358,0.00019243,43890.0,43887.0,0.23]
[1646266966555,0.00019243,43890.0,43887.0,0.21634382]
[1646266967255,0.009123,43891.0,43889.0,0.19227799]
[1646266967457,0.00931543,43891.0,43889.0,0.19227799]
[1646266967657,0.00019243,43891.0,43889.0,0.19227799]
[1646266968054,0.353746,43890.0,43889.0,0.19227799]
[1646266968256,0.353746,43890.0,43887.0,0.21634382]
[1646266968459,0.353746,43893.0,43887.0,0.21634382]
[1646266968655,0.00019243,43892.0,43887.0,0.21634382]
[1646266968908,0.00389985,43888.0,43887.0,0.21634382]
[1646266970113,0.00019243,43890.0,43888.0,0.00779969]
[1646266970911,0.353746,43896.0,43888.0,0.00779969]
[1646266971114,0.00019243,43891.0,43888.0,0.00779969]
[1646266971314,0.00931443,43891.0,43888.0,0.00779969]
[1646266971513,0.00019243,43891.0,43888.0,0.00779969]
[1646266971715,0.353746,43890.0,43888.0,0.00779969]
[1646266972217,0.353746,43889.0,43888.0,0.00779969]
[1646266972515,0.00019243,43891.0,43888.0,0.00779969]
[1646266973166,0.353746,43893.0,43888.0,0.00779969]
[1646266973566,0.00019243,43892.0,43888.0,0.00779969]
[1646266973967,0.00019243,43892.0,43889.0,0.00179603]
[1646266974368,0.353746,43893.0,43889.0,0.00179603]
[1646266974771,0.35393843,43893.0,43889.0,0.00179603]
[1646266975668,0.54907935,43893.0,43889.0,0.00179603]
[1646266975870,0.54927177,43893.0,43889.0,0.00179603]
[1646266976410,0.35393842,43893.0,43889.0,0.00179603]
[1646266976812,0.353746,43893.0,43889.0,0.00179603]
[1646266977209,0.35393842,43893.0,43889.0,0.00179603]
[1646266978010,0.353746,43893.0,43889.0,0.00179603]
[1646266978212,0.35393842,43893.0,43889.0,0.00179603]
[1646266978613,0.35393842,43893.0,43888.0,0.00779969]
[1646266978914,0.353746,43891.0,43888.0,0.00779969]
[1646266979111,0.353746,43892.0,43888.0,0.00779969]
[1646266979610,0.35393843,43892.0,43888.0,0.00779969]
[1646266980449,0.353746,43892.0,43888.0,0.00779969]
[1646266980653,0.35393843,43892.0,43888.0,0.00779969]
[1646266981751,0.353746,43892.0,43888.0,0.00779969]
[1646266981949,0.35393843,43892.0,43888.0,0.00779969]
[1646266982351,0.353746,43889.0,43888.0,0.00779969]
[1646266982753,0.353746,43891.0,43888.0,0.00779969]
[1646266983153,0.009123,43890.0,43888.0,0.00779969]
[1646266983553,0.353746,43890.0,43888.0,0.00779969]
[1646266984022,0.353746,43890.0,43889.0,0.00179603]
[1646266985016,0.00019243,43891.0,43889.0,0.00179603]
[1646266985216,0.353746,43890.0,43889.0,0.00179603]
[1646266985417,0.353746,43891.0,43889.0,0.00179603]
[1646266987220,0.353746,43890.0,43889.0,0.00179603]
[1646266987417,0.03395562,43892.0,43889.0,0.00179603]
[1646266987647,0.292546,43891.0,43889.0,0.00179603]
[1646266987849,0.03395562,43892.0,43889.0,0.00179603]
[1646266988051,0.353743,43891.0,43889.0,0.00179603]
[1646266988248,0.03395562,43892.0,43889.0,0.00179603]
[1646266988452,0.03395562,43892.0,43888.0,0.00779969]
[1646266988453,0.353743,43891.0,43888.0,0.00779969]
[1646266988648,0.03395562,43892.0,43888.0,0.00779969]
[1646266988849,0.03376319,43892.0,43890.0,0.23515142]
[1646266989051,0.353743,43891.0,43890.0,0.23515142]
[1646266989655,0.353743,43891.0,43888.0,0.00779969]
[1646266989854,0.03387034,43892.0,43888.0,0.00779969]
[1646266990053,0.03376319,43892.0,43888.0,0.00779969]
[1646266990257,0.03387034,43892.0,43888.0,0.00779969]
[1646266990656,0.03387034,43892.0,43890.0,0.28466803]
[1646266990856,0.353743,43891.0,43890.0,0.28466803]
[1646266991056,0.03387034,43892.0,43888.0,0.00779969]
[1646266991257,0.03376319,43892.0,43888.0,0.00779969]
[1646266991716,0.353743,43890.0,43888.0,0.00779969]
[1646266992718,0.00020705,43891.0,43888.0,0.00779969]
[1646266993218,0.353743,43890.0,43888.0,0.00779969]
[1646266993419,0.00020705,43891.0,43890.0,0.00179387]
[1646266993619,0.353743,43891.0,43890.0,0.00179387]
[1646266994021,0.35395005,43891.0,43890.0,0.00179387]
[1646266994823,0.353743,43891.0,43890.0,0.00179387]
[1646266996669,0.74614561,43891.0,43890.0,0.00179387]
[1646266996873,0.83180978,43891.0,43890.0,0.00179387]
[1646266997070,1.52290978,43891.0,43890.0,0.00179387]
[1646266997268,1.48294561,43891.0,43890.0,0.00179387]
[1646266997467,1.48694561,43891.0,43890.0,0.00179387]
[1646266998368,0.503443,43891.0,43890.0,0.00179387]
[1646266999018,0.503443,43891.0,43888.0,0.00779969]
[1646266999019,0.50332331,43891.0,43888.0,0.00779969]
[1646266999320,0.1,43890.0,43889.0,0.19951115]
[1646266999517,0.353744,43890.0,43889.0,0.19951115]
[1646267000518,0.353744,43891.0,43889.0,0.19951115]
[1646267001119,0.353744,43891.0,43888.0,0.00779969]
[1646267002327,0.0457,43890.0,43888.0,0.00779969]
[1646267002522,0.353744,43889.0,43888.0,0.00779969]
[1646267002781,0.53659647,43889.0,43888.0,0.00779969]
[1646267002984,0.63659647,43889.0,43888.0,0.00779969]
[1646267003180,1.65795845,43889.0,43888.0,0.00779969]
[1646267003382,1.39698403,43889.0,43888.0,0.00779969]
[1646267003780,1.59188375,43889.0,43888.0,0.00779969]
[1646267003981,1.66245126,43889.0,43888.0,0.00779969]
[1646267005284,1.76564901,43889.0,43888.0,0.00779969]
[1646267005481,1.76964901,43889.0,43888.0,0.00779969]
[1646267006510,1.87000482,43889.0,43888.0,0.00779969]
[1646267006711,1.86600482,43889.0,43888.0,0.00779969]
[1646267007317,1.84541726,43889.0,43888.0,0.00779969]
[1646267008213,1.90243226,43889.0,43888.0,0.00779969]
[1646267008412,1.90243226,43889.0,43888.0,0.00991604]
[1646267008612,1.89943226,43889.0,43888.0,0.00991604]
[1646267011077,1.45111256,43889.0,43888.0,0.00991604]
[1646267011278,1.39409756,43889.0,43888.0,0.00991604]
[1646267012079,1.39409641,43889.0,43888.0,0.00991604]
[1646267013278,0.70299641,43889.0,43888.0,0.00991604]
[1646267013479,0.70299641,43889.0,43888.0,0.00779969]
[1646267013480,0.799444,43889.0,43888.0,0.00779969]
[1646267014129,0.699444,43889.0,43888.0,0.00779969]
[1646267014328,0.399444,43889.0,43888.0,0.00779969]
[1646267015130,0.60741806,43889.0,43888.0,0.00779969]
[1646267015330,0.71141806,43889.0,43888.0,0.00779969]
[1646267015532,0.503444,43889.0,43888.0,0.00779969]
[1646267016730,0.499444,43889.0,43888.0,0.00779969]
[1646267019851,0.453744,43889.0,43888.0,0.00779969]
[1646267021500,0.457744,43889.0,43888.0,0.00779969]
[1646267022707,0.453744,43889.0,43888.0,0.00779969]
[1646267023705,0.453744,43889.0,43888.0,0.00770876]
[1646267025553,0.45365299,43889.0,43888.0,0.00770876]
[1646267025857,0.00019206,43891.0,43888.0,0.00770876]
[1646267026250,0.004,43894.0,43888.0,0.00770876]
[1646267026251,0.009123,43890.0,43888.0,0.00770876]
[1646267026649,0.00018524,43892.0,43888.0,0.00770876]
[1646267027452,0.1159,43897.0,43888.0,0.00970876]
[1646267027754,0.00018524,43892.0,43888.0,0.00970876]
[1646267028153,0.00012524,43892.0,43888.0,0.00970876]
[1646267028556,0.35768066,43896.0,43888.0,0.00970876]
[1646267028756,0.453744,43895.0,43888.0,0.00970876]
[1646267029015,0.453744,43895.0,43888.0,0.00770876]
[1646267029513,0.453744,43895.0,43888.0,0.00870876]
[1646267030116,0.00010678,43894.0,43888.0,0.00870876]
[1646267030314,0.353744,43893.0,43888.0,0.00870876]
[1646267030714,0.353744,43891.0,43888.0,0.00770876]
[1646267031114,0.353744,43889.0,43888.0,0.00770876]
[1646267031315,0.453744,43889.0,43888.0,0.00770876]
[1646267032854,1.144844,43889.0,43888.0,0.00770876]
[1646267033857,0.453744,43889.0,43888.0,0.00770876]
[1646267034657,1.190544,43889.0,43888.0,0.00770876]
[1646267035059,0.499444,43889.0,43888.0,0.00770876]
[1646267035359,1.190544,43889.0,43888.0,0.00770876]
[1646267038604,1.190544,43889.0,43888.0,0.00984502]
[1646267040469,0.499444,43889.0,43888.0,0.00984502]
[1646267040665,1.190544,43889.0,43888.0,0.00984502]
[1646267041168,1.190544,43889.0,43888.0,0.00484502]
[1646267041967,0.499444,43889.0,43888.0,0.00484502]
[1646267042167,0.499384,43889.0,43888.0,0.00484502]
[1646267044408,0.453684,43889.0,43888.0,0.00698128]
[1646267046414,1.144784,43889.0,43888.0,0.00698128]
[1646267046610,0.453684,43889.0,43888.0,0.00698128]
[1646267046909,0.4536186,43889.0,43888.0,0.00698128]
[1646267048163,0.7536186,43889.0,43888.0,0.00698128]
[1646267048862,1.4447186,43889.0,43888.0,0.00698128]
[1646267049066,1.4447186,43889.0,43888.0,0.00484502]
[1646267050464,0.7536186,43889.0,43888.0,0.00484502]
[1646267050863,0.4536186,43889.0,43888.0,0.00484502]
[1646267052902,0.3536186,43889.0,43888.0,0.00484502]
[1646267053107,0.00019206,43891.0,43888.0,0.00484502]
[1646267053502,0.00019206,43891.0,43888.0,0.00684502]
[1646267053905,0.009122,43892.0,43888.0,0.00684502]
[1646267054105,0.00931406,43892.0,43890.0,0.04680225]
[1646267054310,0.00019206,43892.0,43890.0,0.04680225]
[1646267055005,0.1,43897.0,43890.0,0.04680225]
[1646267055255,0.00019206,43893.0,43890.0,0.04680225]
[1646267055456,0.00019206,43893.0,43890.0,0.04780225]
[1646267055756,0.00019206,43893.0,43890.0,0.001]
[1646267056156,1.08133894,43898.0,43890.0,0.001]
[1646267056358,0.29033059,43897.0,43890.0,0.001]
[1646267056556,0.00019206,43894.0,43890.0,0.001]
[1646267056757,0.00019206,43894.0,43888.0,0.00484502]
[1646267056758,0.19081835,43892.0,43888.0,0.00484502]
[1646267056964,0.353743,43891.0,43888.0,0.00484502]
[1646267057357,0.353743,43889.0,43888.0,0.00484502]
[1646267057757,0.453743,43889.0,43888.0,0.00484502]
[1646267059709,0.457743,43889.0,43888.0,0.00484502]
[1646267061007,0.453743,43889.0,43888.0,0.00484502]
[1646267061608,0.457743,43889.0,43888.0,0.00484502]
[1646267062755,0.453743,43889.0,43888.0,0.00484502]
[1646267063556,0.456743,43889.0,43888.0,0.00484502]
[1646267063763,0.103,43889.0,43888.0,0.00484502]
[1646267063961,0.003,43889.0,43888.0,0.00484502]
[1646267064156,0.003,43889.0,43888.0,0.05164727]
[1646267064758,0.80249,43901.0,43888.0,0.05164727]
[1646267064962,0.00019695,43891.0,43888.0,0.05164727]
[1646267065656,0.00019695,43891.0,43888.0,0.05264727]
[1646267065856,0.009122,43892.0,43888.0,0.05264727]
[1646267066056,0.009122,43892.0,43889.0,0.21495166]
[1646267066256,0.00019152,43892.0,43889.0,0.21495166]
[1646267067118,0.353743,43897.0,43889.0,0.21495166]
[1646267067322,0.00019152,43893.0,43889.0,0.51495166]
[1646267067526,0.00019152,43893.0,43891.0,0.04680225]
[1646267068321,0.1,43896.0,43891.0,0.04680225]
[1646267068521,0.00019152,43894.0,43891.0,0.04680225]
[1646267069520,0.001,43900.0,43891.0,0.04780225]
[1646267069521,0.002,43899.0,43891.0,0.04780225]
[1646267069721,0.00019188,43895.0,43891.0,0.04780225]
[1646267069920,0.00931488,43895.0,43891.0,0.04780225]
[1646267070164,0.00019188,43895.0,43891.0,0.04780225]
[1646267070762,0.002,43899.0,43891.0,0.04680225]
[1646267070961,0.00019188,43895.0,43891.0,0.04680225]
[1646267071661,0.00019188,43895.0,43891.0,0.04780225]
[1646267071860,0.003,43900.0,43891.0,0.04780225]
[1646267072260,0.00019188,43895.0,43891.0,0.04780225]
[1646267072866,0.00019188,43895.0,43891.0,0.04680225]
[1646267073164,0.353743,43899.0,43891.0,0.04680225]
[1646267073363,0.00019186,43895.0,43891.0,0.04680225]
[1646267073563,0.00119186,43895.0,43891.0,0.04680225]
[1646267074212,0.001,43895.0,43891.0,0.04680225]
[1646267074612,0.00119186,43895.0,43891.0,0.04680225]
[1646267074812,0.00019186,43895.0,43891.0,0.04680225]
[1646267075512,0.003,43895.0,43891.0,0.04680225]
[1646267075714,0.003,43895.0,43891.0,0.04670732]
[1646267075715,0.353743,43894.0,43891.0,0.04670732]
[1646267076114,0.353743,43892.0,43891.0,0.04670732]
[1646267076315,0.499443,43892.0,43888.0,0.00484502]
[1646267076515,0.353743,43890.0,43888.0,0.00484502]
[1646267076815,0.453743,43889.0,43888.0,0.00484502]
[1646267077014,0.499443,43889.0,43888.0,0.00484502]
[1646267077651,0.503443,43889.0,43888.0,0.00484502]
[1646267079454,0.499443,43889.0,43888.0,0.00484502]
[1646267079655,0.503443,43889.0,43888.0,0.00484502]
[1646267080856,0.499443,43889.0,43888.0,0.00484502]
[1646267082108,0.556448,43889.0,43888.0,0.00484502]
[1646267083110,0.656348,43889.0,43888.0,0.00484502]
[1646267083510,0.556448,43889.0,43888.0,0.00484502]
[1646267083710,0.560448,43889.0,43888.0,0.00484502]
[1646267084408,0.903743,43888.0,43887.0,0.21618884]
[1646267084609,0.353743,43888.0,43887.0,0.21618884]
[1646267084807,0.453743,43888.0,43887.0,0.21618884]
[1646267085263,1.194843,43888.0,43887.0,0.21618884]
[1646267085667,1.198843,43888.0,43887.0,0.21618884]
[1646267086363,0.503443,43888.0,43887.0,0.21618884]
[1646267086772,1.194843,43888.0,43887.0,0.21618884]
[1646267088367,1.194843,43888.0,43887.0,0.21118884]
[1646267089317,0.499443,43888.0,43887.0,0.21118884]
[1646267089716,0.453743,43888.0,43887.0,0.21118884]
[1646267089914,0.60573757,43888.0,43887.0,0.21118884]
[1646267090115,0.453743,43888.0,43887.0,0.21118884]
[1646267091617,0.458743,43888.0,43887.0,0.21118884]
[1646267092869,0.453743,43888.0,43887.0,0.21118884]
[1646267097614,0.458743,43888.0,43887.0,0.21118884]
[1646267098217,1.154143,43888.0,43887.0,0.21118884]
[1646267098416,0.458743,43888.0,43887.0,0.21118884]
[1646267098617,0.61073757,43888.0,43887.0,0.21118884]
[1646267098820,0.453743,43888.0,43887.0,0.21118884]
[1646267099616,0.457743,43888.0,43887.0,0.21118884]
[1646267100017,1.153143,43888.0,43887.0,0.21118884]
[1646267100293,0.457743,43888.0,43887.0,0.21118884]
[1646267100497,1.30513757,43888.0,43887.0,0.21118884]
[1646267100696,0.457743,43888.0,43887.0,0.21118884]
[1646267100995,0.453743,43888.0,43887.0,0.21118884]
[1646267103698,0.457743,43888.0,43887.0,0.21118884]
[1646267104826,0.60973757,43888.0,43887.0,0.21118884]
[1646267105028,0.60573757,43888.0,43887.0,0.21118884]
[1646267106026,0.453743,43888.0,43887.0,0.21118884]
[1646267106529,0.457743,43888.0,43887.0,0.21118884]
[1646267106727,1.153143,43888.0,43887.0,0.21118884]
[1646267106926,1.198843,43888.0,43887.0,0.21118884]
[1646267107130,1.35083757,43888.0,43887.0,0.21118884]
[1646267107530,1.41072504,43888.0,43887.0,0.21118884]
[1646267107763,1.40672504,43888.0,43887.0,0.21118884]
[1646267108163,1.54672504,43888.0,43887.0,0.21118884]
[1646267108364,0.6954,43886.0,43873.0,0.1141]
[1646267108565,0.6954,43886.0,43871.0,0.04689927]
[1646267108566,0.6954,43882.0,43871.0,0.04689927]
[1646267108764,0.6954,43878.0,43871.0,0.04689927]
[1646267108964,1.094843,43877.0,43871.0,0.04689927]
[1646267109181,1.094843,43877.0,43865.0,0.1903]
[1646267109182,1.194843,43877.0,43868.0,0.04670732]
[1646267109363,0.8505267,43872.0,43871.0,0.00019192]
[1646267109662,1.4593727,43872.0,43871.0,0.00019192]
[1646267110065,0.55145532,43872.0,43871.0,0.00019192]
[1646267110364,0.55145532,43872.0,43868.0,0.04670732]
[1646267110562,0.353743,43871.0,43869.0,0.00019192]
[1646267110764,0.0457,43870.0,43869.0,0.00019192]
[1646267110966,0.399443,43870.0,43869.0,0.00019192]
[1646267111445,0.399443,43870.0,43868.0,0.04670732]
[1646267111635,0.1,43876.0,43868.0,0.04670732]
[1646267111636,0.353756,43874.0,43870.0,0.107256]
[1646267111844,0.353756,43874.0,43872.0,0.04670732]
[1646267112037,0.0497,43875.0,43872.0,0.04670732]
[1646267112038,0.0457,43873.0,43872.0,0.04670732]
[1646267112238,0.399456,43873.0,43872.0,0.04670732]
[1646267112637,0.39939472,43873.0,43872.0,0.04670732]
[1646267113638,0.40539472,43873.0,43872.0,0.04670732]
[1646267113839,0.40539472,43873.0,43870.0,0.107256]
[1646267114038,0.40539472,43873.0,43870.0,0.1074481]
[1646267114239,0.40539472,43873.0,43870.0,0.15415542]
[1646267114842,0.39939472,43873.0,43870.0,0.15415542]
[1646267115273,0.39939472,43873.0,43870.0,0.15396332]
[1646267115672,0.40439472,43873.0,43870.0,0.15396332]
[1646267115872,0.05063872,43873.0,43870.0,0.15396332]
[1646267116277,0.353756,43872.0,43870.0,0.15396332]
[1646267116676,0.05063872,43873.0,43870.0,0.15396332]
[1646267116876,0.353756,43872.0,43870.0,0.15396332]
[1646267117576,0.358756,43872.0,43870.0,0.15396332]
[1646267118919,0.353756,43872.0,43870.0,0.38396332]
[1646267119725,0.358756,43872.0,43870.0,0.38396332]
[1646267120723,0.005,43872.0,43870.0,0.38396332]
[1646267120923,0.0457,43876.0,43870.0,0.38396332]
[1646267121124,0.353756,43875.0,43870.0,0.337256]
[1646267122125,0.353756,43875.0,43874.0,0.04670732]
[1646267122765,0.353756,43875.0,43870.0,0.33744792]
[1646267122967,0.353756,43875.0,43874.0,0.04670732]
[1646267123567,0.353756,43875.0,43870.0,0.38396332]
[1646267123768,0.353756,43875.0,43871.0,0.00019192]
[1646267124368,0.1,43874.0,43871.0,0.00019192]
[1646267124568,0.353756,43873.0,43871.0,0.00019192]
[1646267124872,0.353756,43873.0,43870.0,0.33744792]
[1646267125168,0.353756,43873.0,43872.0,0.04670732]
[1646267125568,0.453756,43873.0,43872.0,0.04670732]
[1646267125767,0.460756,43873.0,43872.0,0.04670732]
[1646267126170,0.460756,43873.0,43871.0,0.04670732]
[1646267126408,0.057028,43872.0,43871.0,0.04170732]
[1646267126616,0.410784,43872.0,43871.0,0.04170732]
[1646267127110,0.410784,43872.0,43870.0,0.337256]
[1646267127610,0.358756,43872.0,43871.0,0.04170732]
[1646267128415,0.358756,43872.0,43870.0,0.337256]
[1646267128710,0.358756,43872.0,43871.0,0.04170732]
[1646267128911,0.358756,43872.0,43870.0,0.37896332]
[1646267129112,0.358756,43872.0,43870.0,0.337256]
[1646267129113,0.410786,43872.0,43870.0,0.337256]